Cogmind - Beta 10.2 @@@ ROGUE MODE // 2021.01.13 @ 08:59:29 Player: MikeMulligan Result: Destroyed by G-47 Trooper with Particle Gun Performance ------------- Evolutions (0) 0 Regions Visited (2) 400 Robots Destroyed (11) 55 Value Destroyed (219) 219 Prototype IDs (0) 0 Alien Tech Used (0) 0 Bonus (0) 0 TOTAL SCORE: 674 Bonus ------- None Cogmind --------- Core Integrity 0/250 Matter 291/300 Energy 146/150 System Corruption 1% Temperature Cool (11) Movement Walking (120) Location -10/Mines Parts ------- > --- POWER (1) -------- Light Angular Momentum Engine > --- PROPULSION (2) --- Aluminum Leg Aluminum Leg > --- UTILITY (2) ------ Improved Heat Sink Small Storage Unit > --- WEAPON (2) ------- (None) > --- INVENTORY (6) ---- Ion Engine Aluminum Leg Aluminum Leg Aluminum Leg Carbon-fiber Leg Peak State ------------ > --- POWER ------------ Light Angular Momentum Engine > --- PROPULSION ------- Aluminum Leg Aluminum Leg > --- UTILITY ---------- Small Storage Unit Light Armor Plating > --- WEAPON ----------- Light Assault Rifle Light Assault Rifle > --- INVENTORY -------- Ion Engine Aluminum Leg Aluminum Leg Aluminum Leg Carbon-fiber Leg Improved Heat Sink [Rating: 12] Favorites ----------- Power Ion Engine Engine Ion Engine Propulsion Aluminum Leg Leg Aluminum Leg Utility Small Storage Unit Device Heat Sink Storage Small Storage Unit Protection Light Armor Plating Weapon Light Assault Rifle Energy Gun EM Pulse Gun Ballistic Gun Light Assault Rifle Build | -11 -10 -10 ------- Run | Scr Mat Min Slots Evolved . | . . . Power . | . . . Propulsion . | . . . Utility . | . . . Weapon . | . . . Parts Attached 25 | 6 6 13 Power 7 | 1 2 4 Engine 7 | 1 2 4 Core . | . . . Reactor . | . . . Propulsion 9 | 2 3 4 Treads . | . . . Leg 9 | 2 3 4 Wheel . | . . . Hover . | . . . Flight . | . . . Utility 4 | 1 . 3 Device 2 | . . 2 Storage 1 | 1 . . Processor . | . . . Hackware . | . . . Protection 1 | . . 1 Artifact . | . . . Weapon 5 | 2 1 2 Energy Gun 3 | 2 1 . Energy Cannon . | . . . Ballistic Gun 2 | . . 2 Ballistic Cannon . | . . . Launcher . | . . . Special Weapon . | . . . Impact Weapon . | . . . Slashing Weapon . | . . . Piercing Weapon . | . . . Special Melee Weapon . | . . . Unidentified Prototypes . | . . . Parts Lost 8 | . 3 5 Power 1 | . . 1 Propulsion 1 | . . 1 Utility 1 | . . 1 Weapon 5 | . 3 2 Highest Loss Streak 2 | . 2 2 Average Slot Usage (%) 83 | . 76 89 Engine 13 | . 14 13 Leg 27 | . 28 27 Device 3 | . . 5 Storage 14 | . 14 14 Protection 2 | . . 3 Energy Gun 8 | . 19 . Ballistic Gun 13 | . . 23 Naked Turns . | . . . Heaviest Build 18 | 13 13 18 Greatest Support 20 | 20 20 20 Greatest Overweight (x) 2 | 2 . . Average Overweight (x) . | . . . Largest Inventory Capacity 6 | 6 6 6 Average Capacity 5 | 4 6 6 Most Carried 6 | 5 6 6 Average Carried 5 | 2 5 5 Final Capacity 6 | 6 6 6 Final Carried 6 | 4 6 5 Class Distribution -------------------- 71% | Mutant 28% | Scavenger-Mutant Dominant Class ---------------- Mutant | -10/Materials Scavenger-Mutant | -10/Mines Resources | -11 -10 -10 ----------- Run | Scr Mat Min Matter Collected 417 | 162 128 127 Remotely . | . . . Salvage Created 316 | . 155 161 Parts 27 | . 10 17 Haulers Intercepted . | . . . Recyclers Shooed . | . . . Parts Field Recycled . | . . . Retrieved Matter . | . . . Parts Self-Destructed . | . . . Prevented . | . . . Kills | -11 -10 -10 ------- Run | Scr Mat Min Combat Hostiles Destroyed 11 | . 5 6 Melee 2 | . . 2 Guns 9 | . 5 4 Classes Destroyed 2 | . 2 . Swarmer 7 | . 3 4 Grunt 4 | . 2 2 Best Kill Streak 3 | . 3 3 Combat Bots Only 3 | . 3 3 Max Kills in Single Turn 1 | . 1 1 Gunslinging . | . . . Exploded . | . . . Melee 1 | . . 1 Uniques/NPCs Destroyed . | . . . Combat | -11 -10 -10 -------- Run | Scr Mat Min Damage Taken 1246 | . 420 826 Core 253 | . 76 177 Absorbed by Shields . | . . . Core Remaining (%) 100 | 100 . . Volleys Fired 36 | . 19 17 Largest 2 | . 2 2 Hottest 90 | . 90 40 Shots Fired 57 | . 28 29 Gun 57 | . 28 29 Cannon . | . . . Launcher . | . . . Special . | . . . Kinetic 29 | . . 29 Thermal 9 | . 9 . Explosive . | . . . Electromagnetic 19 | . 19 . Robot Hit Streak 15 | . 7 15 Robot Miss Streak 3 | . 2 3 Penetration Max . | . . . Secondary Targets . | . . . Shots Hit Robots 36 | . 17 19 Core Hits 28 | . 7 21 Critical Hits . | . . . Critical Kills . | . . . Critical Parts Destroyed . | . . . Melee Attacks . | . . . Impact . | . . . Slashing . | . . . Piercing . | . . . Sneak Attacks . | . . . Combat Hostiles . | . . . Follow-up Attacks . | . . . Damage Inflicted 406 | . 207 199 Guns 372 | . 207 165 Cannons . | . . . Explosions . | . . . Melee . | . . . Ramming 34 | . . 34 Kinetic 165 | . . 165 Thermal 37 | . 37 . Explosive . | . . . Electromagnetic 170 | . 170 . Impact . | . . . Slashing . | . . . Piercing . | . . . Highest Corruption 1 | . . 1 Average Corruption 1 | . . 1 Corruption Purged . | . . . Effects 1 | . . 1 Data Loss (minor) 1 | . . 1 Overload Shots . | . . . Overflow Damage . | . . . Projectiles . | . . . Explosions . | . . . Melee . | . . . Knockbacks . | . . . Impact . | . . . Kinetic . | . . . Secondary . | . . . Self-Inflicted Damage 7 | . . 7 Shots . | . . . Rammed 17 | . . 17 Targets Rammed 26 | . . 26 Kicked 9 | . . 9 Crushed . | . . . Highest Temperature 150 | . 150 21 Average Temperature 56 | . 80 6 Received Heat Transfer 234 | . 108 126 Siege Activations . | . . . Robots Corrupted . | . . . Combat Hostiles . | . . . Parts Fried . | . . . Impact Corruptions . | . . . Robots Melted . | . . . Combat Hostiles . | . . . Parts Melted . | . . . Heat Transferred 111 | . 111 . Parts Sabotaged . | . . . Parts Stolen . | . . . Parts Stripped . | . . . Power Chain Reactions . | . . . Missiles Intercepted . | . . . Alert | -11 -10 -10 ------- Run | Scr Mat Min Peak Influence 196 | . 170 196 Initial 66 | . . 66 Average 107 | . 86 140 Maximum Alert Level . | . . . Low Security (%) 100 | 100 100 100 Level 1 . | . . . Level 2 . | . . . Level 3 . | . . . Level 4 . | . . . Level 5 . | . . . High Security . | . . . Max Security . | . . . Squads Dispatched 3 | . 3 . Investigation . | . . . Extermination . | . . . Reinforcement 3 | . 3 . Assault . | . . . Garrison . | . . . Intercept . | . . . Construction Impeded . | . . . Haulers Reinforced . | . . . Stealth | -11 -10 -10 --------- Run | Scr Mat Min Distress Signals 2 | . 2 . Communications Jammed . | . . . Distress Signals . | . . . Times Spotted 25 | . 16 9 Peak Tracking Total 6 | . 6 4 Tactical Retreats 4 | . 4 . Traps | -11 -10 -10 ------- Run | Scr Mat Min Traps Triggered . | . . . Indirectly . | . . . Trap Hack Attempts . | . . . Triggered . | . . . Disarmed . | . . . Reprogrammed . | . . . Reused . | . . . Traps Extracted . | . . . Installed . | . . . Triggered . | . . . Machines | -11 -10 -10 ---------- Run | Scr Mat Min Machines Disabled . | . . . Max in Single Turn . | . . . Machines Sabotaged . | . . . Garrisons Compromised . | . . . Overloaded Fab Kills . | . . . Fab Network Shutdowns . | . . . Hacking | -11 -10 -10 --------- Run | Scr Mat Min Machines Accessed 1 | . 1 . Terminals 1 | . 1 . Fabricators . | . . . Repair Stations . | . . . Recycling Units . | . . . Scanalyzers . | . . . Garrison Access . | . . . Total Hacks 3 | . 3 . Successful . | . . . Failed 3 | . 3 . Catastrophic . | . . . Database Lockouts . | . . . Manual . | . . . Terminals 3 | . 3 . Fabricators . | . . . Repair Stations . | . . . Recycling Units . | . . . Scanalyzers . | . . . Garrison Access . | . . . Terminal Hacks . | . . . Fabricator Hacks . | . . . Repair Station Hacks . | . . . Recycling Unit Hacks . | . . . Scanalyzer . | . . . Garrison Access Hacks . | . . . Unauthorized Hacks . | . . . Terminals . | . . . Fabricators . | . . . Repair Stations . | . . . Recycling Units . | . . . Scanalyzers . | . . . Garrison Access . | . . . Data Cores Recovered . | . . . Used . | . . . Hacking Detections 1 | . 1 . Full Trace Events . | . . . Feedback Events . | . . . Feedback Blocked . | . . . Robot Schematics Acquired . | . . . Robots Built . | . . . Matter . | . . . Time . | . . . Total Robot Build Rating . | . . . Part Schematics Acquired . | . . . Parts Built . | . . . Matter . | . . . Time . | . . . Total Part Build Rating . | . . . Parts Repaired . | . . . Time . | . . . Parts Recycled . | . . . Recycled Matter . | . . . Retrieved Matter . | . . . Retrieved Components . | . . . Parts Scanalyzed . | . . . Part Schematics Acquired . | . . . Parts Damaged . | . . . Bothacking | -11 -10 -10 ------------ Run | Scr Mat Min Used RIF Installer . | . . . Robots Hacked . | . . . Non-combat . | . . . Combat . | . . . Robot Hacks Applied . | . . . Relay Couplers Released . | . . . Robots Rewired . | . . . Allies Hacked . | . . . Hacks Repelled . | . . . Allies | -11 -10 -10 -------- Run | Scr Mat Min Total Allies . | . . . Largest Group . | . . . Highest-Rated Group . | . . . Highest-Rated Ally . | . . . Total Orders . | . . . Ally Attacks . | . . . Total Damage . | . . . Kills . | . . . Allies Corrupted . | . . . Allies Melted . | . . . Intel | -11 -10 -10 ------- Run | Scr Mat Min Robot Analysis Total . | . . . Derelict Logs Recovered . | . . . Drone Launches . | . . . Drone Recoveries . | . . . Exploration | -11 -10 -10 ------------- Run | Scr Mat Min Turns Passed 889 | 73 348 468 Spaces Moved 527 | 45 225 257 Core 16 | 16 . . Treads . | . . . Legs 511 | 29 225 257 Wheels . | . . . Hover . | . . . Flight . | . . . Fastest Speed 50 | 50 120 120 Average Speed 120 | 121 120 120 Slowest Speed 150 | 150 120 120 Overloaded Moves . | . . . Propulsion Burnouts . | . . . Robots Hopped . | . . . Cave-ins Triggered . | . . . Exploration Rate (%) 27 | 3 28 52 Regions Visited 2 Branch Regions 1 Pre-discovered Areas . | . . . Known Exits Taken . | . . . Unknown Exits Taken 2 | 1 1 . Scrap Searched 2 | . . 2 Spaces Dug . | . . . Terrain Destroyed . | . . . Melee . | . . . Projectile . | . . . AOE . | . . . Terrain Rammed . | . . . Walls Destroyed . | . . . Machines Disabled . | . . . Actions | -11 -10 -10 --------- Run | Scr Mat Min Total 725 | 63 276 386 Wait 83 | 3 17 63 Move 525 | 44 224 257 Hop . | . . . Pick Up 20 | 10 5 5 Fast Attach 4 | . . 4 Attach 9 | 6 1 2 Detach . | . . . Swap 12 | . 5 7 Drop 10 | . 5 5 Fire 36 | . 19 17 Melee . | . . . Ram . | . . . Kick 26 | . . 26 Crush . | . . . Escape Stasis . | . . . Rewire . | . . . Trap . | . . . Miscellaneous . | . . . Route ------- -11/Scrapyard -10/Materials -10/Mines (discovered 2 exits: [*Mat x2]) History --------- Turn | Location | Event 20 | -11/Scrapyard | Discovered new exit (range 14) 74 | -11/Scrapyard | Entered Materials 337 | -10/Materials | Build established: Mutant 398 | -10/Materials | Discovered new exit (range 16) 422 | -10/Materials | Entered Mines 435 | -10/Mines | Met a Derelict bent on vengeance 436 | -10/Mines | Core integrity fell below 50% 566 | -10/Mines | Discovered new exit (range 11) 677 | -10/Mines | Discovered new exit (range 7) 863 | -10/Mines | Core integrity fell below 20% 890 | -10/Mines | Destroyed by G-47 Trooper with Particle Gun Last Messages --------------- Found 43 Matter. Dropped Aluminum Leg. Acquired Lgt. Armor Plating. Dropped Aluminum Leg. Acquired Lgt. Angular Momentum Engine. Dropped Lgt. Ion Engine. Acquired 20 matter. Acquired Carbon-fiber Leg. Dropped Heat Sink. Acquired Imp. Heat Sink. Lgt. Armor Plating destroyed. Lgt. Assault Rifle destroyed. System corrupted: Component data lost. U-05 Engineer destroyed. S-10 Pest destroyed. K-01 Serf collects debris. T-07 Excavator destroyed. K-01 Serf collects debris. Lgt. Assault Rifle destroyed. K-01 Serf collects debris. Map ----- +----------------------------------------------------+ | ????????????? ???# ??## ##????????????? | | ?????????????? ??# ### = ####?????????? | | ???????????????? ##$ = !% ###???????? | | ???????????????????# % ##?????? | | ???????????????????## * ## ##????# | | ?????????????#??????## ##### ##### | | ??????????## ???????##### ##???# | | ??????????# ??????????## ##???## | | ??????????# ???????????#! ##???### # | | ??????????# ???????????# #?????### ### | | ??????????# #??????????##%*=###???????## ##?? | | ??????????# #????#####?##=%#??????????# #??? | | ??????????# ##?## ##?# !#??????????# #??? | | ??????????# ### k ### #??????????## #??? | | ########??# #???????????# #??? | | % % #???# t |[ #???####????# ##?? | | % #????# *=%######??## ###?## #?? | | %% #????## %%[#???????# ### ##? | | " % = #?????# #???????# #? | | " #?????# g##??????## #? | | " #?????## ### ##?????## #? | | #??????### #?## ##???## ##? | | " """ #????????# #??## #??## #?? | | " """ #????????# #???# #??# ##?? | | " """ #?????#### #???# #??# #??? | | #?????# % #???# @ #??# ##??? | | # ########### ####???# ##?## ## ## #???? | | # #???# #??????## #??###### ## #???? | | # #???# #######???????# t ##??????## ### #???? | | #% #???# #?????????????# ##??????####?# #???? | | #* #???# #?????????????# #???????????# #???? | | # #???# #?????????????# #???????????# #???? | | # %#???# #?????????????# #???????????# #???? | | # *#???# #????????????# #???????????# #???? | | # #???# #???????????# #??????????? ???? | | #*%#???# #???#####???# ##??????????? """???? | | # ##??# #??## ##??# ####???????????? """ ??? | | #??# #### #??## ##??????????????? """ ??? | | #??# ## #???####???????????????? ??? | | #### # #??????????????????????? ??? "?? | | < ##??????????????????????? ??????? | | #???????????????????????? ??????? | | ######## ##???????????????????????? ??????? | | #####??????## ##????????????????????????????????? | | ????????????####?????????????????????????????????? | | ?????????????????????????????????????????????????? | | ?????????????????????????????????????????????????? | | | | | | | +----------------------------------------------------+ Best States ------------- Heat Dissipation 39 Energy Generation 18 Energy Capacity 250 Matter Stores 300 Matter Capacity 300 Sight Range 16 Terrain Scan Density 10 Armor Coverage 150 Evasion (%) 40 Item Schematics ----------------- None Robot Schematics ------------------ None Fabricated ------------ Nothing Alien Tech Used ----------------- None Achievements -------------- None Challenges ------------ None Game ------ Seed QuantumGodField Manual? 0 Play Time 00:14:42 Cumulative 12.6 hours Start 2021.01.13 @ 08:45:16 End 2021.01.13 @ 08:59:29 Sessions 1 Manual Loads 0 Difficulty Rogue Special Mode None Game No. 11 Rogue 11 Adventurer 0 Explorer 0 Win Type - Total 0 Types 0/0/0/0/0/0/0/0/0 Lore% 7 Gallery% 14 Achievement% 11 Wizard Run 0 Options --------- ASCII 0 Keyboard 0 Movement Mouse Keybinds 0 Fullscreen 1 Font 24/Smallcaps Map View 76x50 Tactical HUD 0 Map Filters NONE Filters NONE Steam 1 RUN: 1da5c28f-e46a-4339-bb7b-dbae52ba155e